bitfinex/quotes_ETHUSD_20230116
["timestamp","ask_amount","ask_price","bid_price","bid_amount"]
[1673912403281,0.08175979,1580.3,1580.2,16.59584565]
[1673912403282,0.08375979,1580.3,1580.2,16.59584565]
[1673912403581,0.08175979,1580.3,1580.2,16.59784565]
[1673912405842,0.08375979,1580.3,1580.2,16.59584565]
[1673912406057,0.08175979,1580.3,1580.2,16.59784565]
[1673912414509,0.08175979,1580.3,1580.2,15.09784565]
[1673912418494,0.08175979,1580.3,1580.2,12.72262]
[1673912420016,1.90599858,1580.3,1580.2,0.066]
[1673912420259,3.32835254,1580.3,1580.1,9.3996361]
[1673912421169,0.94723879,1580.2,1580.1,6.3996361]
[1673912421537,2.702428,1580.2,1580.1,0.06323507]
[1673912421865,1.75518921,1580.2,1579.9,6.39237507]
[1673912422024,0.94543037,1580.1,1579.9,6.39237507]
[1673912422656,2.70061958,1580.2,1579.9,6.39237507]
[1673912422853,2.70061958,1580.2,1579.9,12.72188507]
[1673912423265,0.94543037,1580.1,1579.9,12.72188507]
[1673912424521,1.42235396,1580.2,1579.9,12.72188507]
[1673912424522,2.36778433,1580.2,1579.9,12.72188507]
[1673912425373,0.94543037,1580.1,1579.9,12.72188507]
[1673912426419,0.94543037,1580.2,1579.9,15.41180649]
[1673912426629,1.42033037,1580.2,1580.0,3.0]
[1673912426843,1.42033037,1580.2,1580.1,12.65742]
[1673912427144,0.94543037,1580.2,1580.1,12.72065507]
[1673912427948,2.36778433,1580.2,1580.1,12.72065507]
[1673912428110,2.68871899,1580.2,1580.1,0.06323507]
[1673912428317,2.68871899,1580.2,1580.0,9.39212507]
[1673912428318,4.57952514,1580.2,1580.0,9.39212507]
[1673912428562,0.94680749,1580.1,1580.0,9.39212507]
[1673912429256,1.42235396,1580.1,1580.0,9.39212507]
[1673912430045,1.42235396,1580.1,1580.0,3.06323507]
[1673912430199,1.42235396,1580.1,1580.0,3.0]
[1673912432205,9.11136674,1580.1,1579.9,0.06323507]
[1673912432421,9.11136674,1580.1,1579.8,0.00248917]
[1673912432422,2.91356129,1580.0,1579.8,0.00248917]
[1673912432667,2.36789505,1579.9,1579.8,0.00248917]
[1673912433525,0.94715802,1579.9,1579.8,0.00248917]
[1673912435116,0.94715802,1580.0,1579.8,6.97199759]
[1673912435424,0.94715802,1580.0,1579.8,7.03523266]
[1673912436164,22.44243703,1580.1,1579.8,7.03523266]
[1673912436165,23.38959505,1580.1,1579.8,7.03523266]
[1673912436338,23.38959505,1580.1,1579.8,12.72554424]
[1673912437158,0.94715802,1580.0,1579.8,12.72554424]
[1673912437579,23.38959505,1580.1,1579.8,12.72554424]
[1673912438364,0.94715802,1580.0,1579.8,12.72554424]
[1673912439151,23.38959505,1580.1,1579.8,12.72554424]
[1673912439623,23.38959505,1580.1,1579.8,14.63112466]
[1673912439814,22.91459505,1580.1,1579.8,14.63112466]
[1673912441079,21.49385802,1580.1,1579.8,14.63112466]
[1673912441470,22.91459505,1580.1,1579.8,14.63112466]
[1673912441685,0.94715802,1580.0,1579.8,14.63112466]
[1673912443504,0.94715802,1580.0,1579.8,12.72200765]
[1673912443942,22.91459505,1580.1,1579.8,12.72200765]
[1673912444361,0.94715802,1580.0,1579.8,12.72200765]
[1673912448140,22.91459505,1580.1,1579.8,12.72200765]
[1673912450454,0.94715802,1580.0,1579.8,12.72200765]
[1673912450783,0.94715802,1580.0,1579.8,15.61332009]
[1673912452136,0.94715802,1580.0,1579.8,16.81832009]
[1673912452380,14.45519505,1580.1,1579.9,1.5]
[1673912452543,13.03445802,1580.1,1579.9,2.705]
[1673912452741,13.03445802,1580.1,1580.0,19.25783]
[1673912452956,13.03445802,1580.1,1580.0,19.32106507]
[1673912453167,1.01315802,1580.1,1580.0,19.32106507]
[1673912453427,0.94715802,1580.1,1580.0,19.32106507]
[1673912455595,2.36789505,1580.1,1580.0,19.32106507]
[1673912455854,0.94715802,1580.1,1580.0,19.32106507]
[1673912457058,2.36789505,1580.1,1580.0,19.32106507]
[1673912457266,2.36789505,1580.1,1580.0,19.05056507]
[1673912457905,1.42073703,1580.1,1580.0,12.72145507]
[1673912458122,3.31506292,1580.1,1580.0,12.72145507]
[1673912458528,2.43205025,1580.2,1580.0,12.72145507]
[1673912458529,0.066,1580.2,1580.1,0.94230856]
[1673912458867,0.9465293,1580.2,1580.1,18.84287658]
[1673912459190,0.9465293,1580.2,1580.1,18.90611165]
[1673912459622,2.44902612,1580.3,1580.1,18.90611165]
[1673912459787,1.50249682,1580.3,1580.2,1.427]
[1673912460163,1.50249682,1580.3,1580.2,14.08362]
[1673912460469,1.50249682,1580.3,1580.2,14.14685507]
[1673912461489,3.87172271,1580.3,1580.2,12.71985507]
[1673912461702,3.87067355,1580.3,1580.2,12.71985507]
[1673912461931,2.45098568,1580.3,1580.2,12.71985507]
[1673912462368,1.9763709,1580.3,1580.2,12.71985507]
[1673912462974,1.5014709,1580.3,1580.2,12.71985507]
[1673912464470,3.39579679,1580.3,1580.2,12.71985507]
[1673912466197,3.39779679,1580.3,1580.2,12.71785507]
[1673912466404,3.39579679,1580.3,1580.2,12.71985507]
[1673912467405,1.97608568,1580.3,1580.2,12.71985507]
[1673912468398,2.47427233,1580.3,1580.2,0.06323507]
[1673912468616,4.8381613,1580.3,1580.1,9.00940381]
[1673912468841,1.89216461,1580.2,1580.1,9.00940381]
[1673912469050,2.36706461,1580.2,1580.1,9.00940381]
[1673912469299,4.73311486,1580.2,1580.1,9.00940381]
[1673912469484,2.36706461,1580.2,1580.1,9.00940381]
[1673912470314,7.02704768,1580.2,1580.1,2.68069381]
[1673912470552,8.59304768,1580.2,1580.1,2.61745874]
[1673912470769,7.09304768,1580.2,1580.1,2.61745874]
[1673912470943,7.09304768,1580.2,1579.9,0.06323507]
[1673912470944,1.5,1580.1,1579.9,0.06323507]
[1673912471152,10.2275315,1580.0,1579.5,0.06323507]
[1673912471364,0.94567543,1579.6,1579.4,0.10003235]
[1673912472533,2.36418858,1579.6,1579.4,0.10003235]
[1673912472690,0.94567543,1579.6,1579.4,0.10003235]
[1673912474045,4.58489847,1579.6,1579.4,0.10003235]
[1673912474240,0.45848985,1579.5,1579.4,0.10003235]
[1673912474847,15.05938858,1579.7,1579.4,0.10003235]
[1673912475083,18.69861162,1579.7,1579.4,0.10003235]
[1673912476847,17.28009847,1579.7,1579.4,0.10003235]
[1673912477314,18.69861162,1579.7,1579.4,0.10003235]
[1673912477913,17.28009847,1579.7,1579.4,0.10003235]
[1673912478137,1.72800985,1579.6,1579.4,0.10003235]
[1673912480630,5.36723289,1579.6,1579.4,0.10003235]
[1673912480895,5.43323289,1579.6,1579.4,0.10003235]
[1673912481475,1.439,1579.5,1579.4,0.10003235]
[1673912488135,7.34333289,1579.6,1579.4,0.10003235]
[1673912488463,0.73433329,1579.5,1579.4,0.10003235]
[1673912491496,0.066,1579.6,1579.4,0.10003235]
[1673912491711,11.6693,1579.7,1579.4,0.10003235]
[1673912491712,11.7353,1579.7,1579.4,0.10003235]
[1673912493675,11.7318743,1579.7,1579.4,0.10003235]
[1673912497811,15.37109734,1579.7,1579.4,0.10003235]
[1673912498137,1.53710973,1579.6,1579.4,0.10003235]
[1673912502409,9.73195684,1579.6,1579.4,0.10003235]
[1673912502615,5.07822304,1579.5,1579.4,0.10003235]
[1673912502831,16.01283254,1579.5,1579.4,0.10003235]
[1673912505888,17.43134569,1579.5,1579.4,0.10003235]
[1673912506100,27.69862032,1579.5,1579.4,0.10003235]
[1673912506311,29.13762032,1579.5,1579.4,0.10003235]
[1673912506696,28.19194489,1579.5,1579.4,0.10003235]
[1673912507490,29.1399826,1579.5,1579.4,0.10003235]
[1673912508590,28.66368345,1579.5,1579.4,0.10003235]
[1673912508801,29.1399826,1579.5,1579.2,0.07410358]
[1673912509015,14.02016351,1579.3,1579.2,0.07410358]
[1673912509284,14.02016351,1579.3,1579.2,3.58e-06]
[1673912509285,41.40450279,1579.3,1579.2,3.58e-06]
[1673912509854,47.74560279,1579.3,1579.2,3.58e-06]
[1673912510426,46.67855547,1579.3,1579.2,3.58e-06]
[1673912510639,48.87010568,1579.3,1579.2,3.58e-06]
[1673912510958,47.71932602,1579.3,1579.2,3.58e-06]
[1673912511536,47.71932602,1579.3,1579.0,0.10794682]
[1673912511537,0.879,1579.1,1579.0,0.10794682]
[1673912511748,39.20915517,1579.1,1579.0,0.10794682]
[1673912511993,39.92149435,1579.1,1579.0,0.10794682]
[1673912512217,43.99490858,1579.1,1579.0,0.10794682]
[1673912512436,43.99490858,1579.1,1578.9,0.12276105]
[1673912512437,20.81424,1579.0,1578.9,0.12276105]
[1673912512601,37.57075949,1579.0,1578.9,0.12276105]
[1673912512796,32.51146529,1579.0,1578.9,0.12276105]
[1673912513006,31.09789291,1579.0,1578.9,0.12276105]
[1673912513269,32.40120116,1579.0,1578.9,0.12276105]
[1673912513421,31.75486198,1579.0,1578.9,0.12276105]
[1673912514078,33.16843436,1579.0,1578.9,0.12276105]
[1673912514692,31.75486198,1579.0,1578.9,0.12276105]
[1673912516386,33.16843436,1579.0,1578.9,0.12276105]
[1673912516591,31.75486198,1579.0,1578.9,0.12276105]
[1673912517641,30.81249536,1579.0,1578.9,0.12276105]
[1673912518291,31.75486198,1579.0,1578.9,0.12276105]
[1673912518964,30.81249536,1579.0,1578.9,0.12276105]
[1673912519807,30.81249536,1579.0,1578.9,0.00276105]
[1673912520349,33.81249536,1579.0,1578.9,0.00276105]
[1673912521171,34.75486198,1579.0,1578.9,0.00276105]
[1673912521552,43.48820116,1579.0,1578.9,0.00276105]
[1673912521803,44.43286517,1579.0,1578.9,0.00076105]
[1673912521971,44.90462283,1579.0,1578.9,0.00076105]
[1673912522377,44.25828365,1579.0,1578.9,0.00076105]
[1673912522635,43.78173454,1579.0,1578.9,0.00076105]
[1673912523427,36.66316822,1579.0,1578.9,0.00076105]
[1673912523653,29.29610478,1579.0,1578.9,0.00076105]
[1673912523905,16.05942407,1579.0,1578.9,0.00076105]
[1673912524399,11.05942407,1579.0,1578.9,0.00076105]
[1673912525527,3.18262407,1579.0,1578.9,0.00076105]
[1673912525734,3.11662407,1579.0,1578.9,0.00076105]
[1673912525981,3.34662407,1579.0,1578.9,0.00076105]
[1673912526159,3.11662407,1579.0,1578.9,0.87776105]
[1673912526607,3.11662407,1579.0,1578.9,0.00076105]
[1673912526937,0.068,1579.1,1578.9,0.00076105]
[1673912527128,3.11862407,1579.1,1578.9,0.00076105]
[1673912529467,4.20969648,1579.1,1578.9,0.00076105]
[1673912530892,3.11862407,1579.1,1578.9,0.00076105]
[1673912532975,0.002,1579.1,1578.9,0.00076105]
[1673912535753,4.53067253,1579.3,1578.9,0.00076105]
[1673912536087,3.11662407,1579.2,1578.9,0.00076105]
[1673912538778,3.11862407,1579.2,1578.9,0.00076105]
[1673912538990,3.11662407,1579.2,1578.9,0.00076105]
[1673912539327,4.02915521,1579.2,1578.9,0.00076105]
[1673912544058,9.0790232,1579.2,1578.9,0.00076105]
[1673912544394,9.1450232,1579.2,1578.9,0.00076105]
[1673912544810,5.50682807,1579.2,1578.9,0.00076105]
[1673912544995,3.11662407,1579.1,1578.9,0.00076105]
[1673912545206,5.06995934,1579.0,1578.9,0.00076105]
[1673912545468,5.13595934,1579.0,1578.9,0.00076105]
[1673912546243,6.08067689,1579.0,1578.9,0.00076105]
[1673912546486,4.66900403,1579.0,1578.9,0.00076105]
[1673912546718,4.60300403,1579.0,1578.9,0.00076105]
[1673912548260,4.37300403,1579.0,1578.9,0.00076105]
[1673912548722,5.78467689,1579.0,1578.9,0.00076105]
[1673912548891,5.85067689,1579.0,1578.9,0.00076105]
[1673912549457,13.35131852,1579.0,1578.9,0.00076105]
[1673912549611,13.35777821,1579.0,1578.9,0.00076105]
[1673912550065,13.83307821,1579.0,1578.9,0.00076105]
[1673912551342,13.35777821,1579.0,1578.9,0.00076105]
[1673912551730,11.47553903,1579.0,1578.9,0.00076105]
[1673912552818,13.35777821,1579.0,1578.9,0.00076105]
[1673912553139,15.5775028,1579.0,1578.9,0.00076105]
[1673912553447,21.9106228,1579.0,1578.9,0.00076105]
[1673912553660,23.32897297,1579.0,1578.9,0.00076105]
[1673912554398,21.91096404,1579.0,1578.9,0.00076105]
[1673912555078,21.91096404,1579.0,1578.6,0.11069754]
[1673912555079,21.91096404,1579.0,1578.6,0.06145859]
[1673912555285,0.94543154,1578.7,1578.6,0.06145859]
[1673912559400,2.36346677,1578.8,1578.6,0.06145859]
[1673912559726,5.48009084,1578.8,1578.6,0.06145859]
[1673912559949,4.12805561,1578.8,1578.6,0.06145859]
[1673912560132,4.06205561,1578.8,1578.6,0.06145859]
[1673912560928,5.48009084,1578.8,1578.6,0.06145859]
[1673912561084,5.54609084,1578.8,1578.6,0.06145859]
[1673912561301,7.18892148,1578.8,1578.6,0.06145859]
[1673912561997,4.06205561,1578.7,1578.6,0.06145859]
[1673912563085,0.94543154,1578.7,1578.6,0.06145859]
[1673912563318,1.01143154,1578.8,1578.6,0.06145859]
[1673912563551,4.06205561,1578.8,1578.6,0.06145859]
[1673912564612,3.11662407,1578.8,1578.6,0.06145859]
[1673912568983,0.066,1578.9,1578.7,12.66864]
[1673912569228,2.36346677,1579.1,1578.8,3.0]
[1673912569467,2.36346677,1579.1,1578.8,9.33392]
[1673912569468,0.94543154,1579.0,1578.8,9.33392]
[1673912569769,2.36346677,1579.1,1578.8,9.39715507]
[1673912570087,2.36346677,1579.1,1578.8,11.60373458]
[1673912570398,0.94543154,1579.1,1578.8,11.60373458]
[1673912570553,0.94543154,1579.1,1578.8,17.93765458]
[1673912571731,10.96066677,1579.2,1578.8,17.93765458]
[1673912571934,0.94543154,1579.1,1578.9,1.79376546]
[1673912572153,1.01143154,1579.2,1579.0,6.33312]
[1673912572364,0.94543154,1579.2,1579.0,6.39635507]
[1673912572593,0.94543154,1579.2,1579.0,12.72947507]
[1673912573181,0.94543154,1579.2,1579.0,6.39635507]
[1673912574231,4.06205561,1579.1,1579.0,0.06323507]
[1673912574494,6.64650576,1579.1,1578.7,8.07233507]
[1673912574710,0.94504444,1578.9,1578.7,8.07233507]
[1673912574867,4.06166851,1578.9,1578.7,0.06323507]
[1673912575074,0.40616685,1578.8,1578.6,0.06145859]
[1673912575864,1.35121129,1578.8,1578.6,0.06145859]
[1673912577404,1.35121129,1578.8,1578.6,3.06145859]
[1673912578280,4.46783536,1578.8,1578.6,3.06145859]
[1673912579274,3.52279092,1578.8,1578.6,3.06145859]
[1673912579505,3.52279092,1578.8,1578.6,0.06145859]
[1673912582238,0.35227909,1578.7,1578.6,0.06145859]
[1673912582502,3.52279092,1578.8,1578.6,0.06145859]
[1673912583090,3.11662407,1578.7,1578.6,0.06145859]
[1673912583329,3.11662407,1578.7,1578.6,0.05818006]
[1673912583330,11.57115758,1578.7,1578.6,0.05818006]
[1673912583516,11.57115758,1578.7,1578.6,0.04219563]
[1673912583517,5.30571817,1578.7,1578.6,0.04219563]
[1673912583726,25.55319136,1578.7,1578.6,0.04219563]
[1673912583946,29.63941829,1578.7,1578.6,0.04219563]
[1673912584677,30.58460037,1578.7,1578.6,0.04219563]
[1673912585225,29.63941829,1578.7,1578.6,0.04219563]
[1673912585410,30.58459912,1578.7,1578.6,0.04219563]
[1673912586043,29.63941829,1578.7,1578.6,0.04219563]
[1673912586254,30.58460315,1578.7,1578.6,0.04219563]
[1673912586481,29.40941829,1578.7,1578.6,0.04219563]
[1673912586730,29.40941829,1578.7,1578.6,6.37691563]
[1673912586731,1.01117319,1578.7,1578.6,6.37691563]
[1673912586931,0.94517319,1578.7,1578.6,6.4401507]
[1673912587126,0.94517319,1578.7,1578.6,8.35114977]
[1673912589311,0.94517319,1578.7,1578.6,6.4401507]
[1673912600982,0.94517319,1578.7,1578.6,12.7748707]
[1673912601919,0.94517319,1578.7,1578.6,18.84667716]
[1673912603179,0.94517319,1578.7,1578.6,19.7947395]
[1673912603391,0.94517319,1578.7,1578.6,18.84667716]
[1673912603809,0.94517319,1578.7,1578.6,22.43978678]
[1673912604179,0.94517319,1578.7,1578.6,24.48673951]
[1673912604493,0.94251923,1578.7,1578.6,24.48673951]
[1673912606763,0.94251923,1578.7,1578.6,25.43480185]
[1673912607105,0.94251923,1578.7,1578.6,24.48673951]
[1673912607915,0.94251923,1578.7,1578.6,22.98673951]
[1673912608419,0.94251923,1578.7,1578.6,21.41493305]
[1673912608598,0.94251923,1578.7,1578.6,15.7748707]
[1673912609951,1.88786971,1578.7,1578.6,0.1054307]
[1673912610113,1.88786971,1578.7,1578.6,0.04219563]
[1673912611081,1.41791923,1578.7,1578.6,12.71163563]
[1673912611275,0.94251923,1578.7,1578.6,12.7748707]
[1673912611480,1.88786971,1578.7,1578.6,12.7748707]
[1673912612025,0.94251923,1578.7,1578.6,12.7748707]
[1673912613510,1.88786971,1578.7,1578.6,12.7748707]
[1673912614984,2.74490971,1578.7,1578.6,0.1054307]
[1673912615174,2.74490971,1578.7,1578.6,0.04219563]
[1673912615395,4.63512322,1578.7,1578.6,0.04219563]
[1673912615626,2.74490971,1578.7,1578.6,0.04219563]
[1673912616175,2.74490971,1578.7,1578.4,2.2288137]
[1673912616176,25.70752263,1578.7,1578.4,2.2288137]
[1673912616326,25.70752263,1578.7,1578.4,2.16557863]
[1673912616327,1.4194944,1578.5,1578.4,2.16557863]
[1673912616540,8.40400484,1578.5,1578.4,2.16557863]
[1673912616855,4.83211847,1578.5,1578.4,2.16557863]
[1673912617065,4.76611847,1578.5,1578.4,2.16557863]
[1673912617301,4.29241678,1578.5,1578.4,2.16557863]
[1673912617606,6.66149854,1578.5,1578.4,2.16557863]
[1673912617844,6.72749854,1578.5,1578.4,2.16557863]
[1673912619273,17.17141234,1578.5,1578.4,2.16557863]
[1673912619524,18.19557892,1578.5,1578.4,2.16557863]
[1673912619758,16.77720236,1578.5,1578.4,2.16557863]
[1673912619953,14.55936897,1578.5,1578.4,2.16557863]
[1673912620482,18.19623432,1578.5,1578.4,2.16557863]
[1673912620634,16.77785776,1578.5,1578.4,2.16557863]
[1673912620845,13.14099241,1578.5,1578.4,2.16557863]
[1673912622141,6.80587241,1578.5,1578.4,2.16557863]
[1673912623084,13.14099241,1578.5,1578.4,2.16557863]
[1673912628562,12.11682583,1578.5,1578.4,2.16557863]
[1673912628779,13.16979972,1578.5,1578.4,2.16557863]
[1673912628951,13.06237522,1578.5,1578.4,2.16557863]
[1673912629161,13.16979928,1578.5,1578.4,2.16557863]
[1673912631836,13.06237522,1578.5,1578.4,2.16557863]
[1673912632023,12.11682583,1578.5,1578.4,2.16557863]
[1673912633411,5.55170583,1578.5,1578.4,2.16557863]
[1673912633586,0.066,1578.5,1578.4,8.50109863]
[1673912633943,11.88851923,1578.7,1578.4,17.8998537]
[1673912634627,11.88851923,1578.7,1578.5,1.5]
[1673912634878,11.88851923,1578.7,1578.5,14.16977]
[1673912635087,11.88851923,1578.7,1578.6,1.416977]
[1673912635412,11.88851923,1578.7,1578.6,1.41345028]
[1673912635558,1.00851923,1578.7,1578.6,1.41345028]
[1673912635773,4.79337469,1579.0,1578.7,1.5]
[1673912635986,3.30899813,1579.0,1578.7,1.5]
[1673912636224,3.30899813,1579.0,1578.8,6.48392]
[1673912636443,3.30899813,1579.0,1578.8,6.54715507]
[1673912638188,2.36344874,1579.0,1578.8,6.54715507]
[1673912638502,3.30899813,1579.0,1578.8,6.54715507]
[1673912638716,2.36344874,1579.0,1578.8,6.54715507]
[1673912639071,3.30899813,1579.0,1578.8,6.54715507]
[1673912647680,2.36344874,1579.0,1578.8,6.54715507]
[1673912648138,2.36344874,1579.0,1578.9,0.65471551]
[1673912648560,2.36036142,1579.0,1578.9,0.65471551]
[1673912650017,2.36036142,1579.0,1578.9,6.98823551]
[1673912650222,2.36036142,1579.0,1578.9,7.63222442]
[1673912650474,2.36036142,1579.0,1578.9,18.46574442]
[1673912653686,2.36036142,1579.0,1578.9,17.88499058]
[1673912655913,2.36036142,1579.0,1578.9,21.00161465]
[1673912657685,2.36036142,1579.0,1578.9,21.58236849]
[1673912659709,2.36036142,1579.0,1578.9,16.96574442]
[1673912659891,2.36036142,1579.0,1578.9,16.38499058]
[1673912661031,2.36036142,1579.0,1578.9,16.40482058]
[1673912664512,2.36036142,1579.0,1578.9,16.43497058]
[1673912667678,2.36036142,1579.0,1578.9,16.48639058]
[1673912670104,2.36036142,1579.0,1578.9,17.98639058]
[1673912671582,2.36036142,1579.0,1578.9,21.10301465]
[1673912671797,2.36236142,1579.0,1578.9,20.99961465]
[1673912671969,2.36236142,1579.0,1578.9,21.00161465]
[1673912671970,2.36036142,1579.0,1578.9,21.00161465]
[1673912677436,1.42e-06,1579.0,1578.9,21.00161465]
[1673912677701,1.01154939,1579.3,1579.0,2.36]
[1673912678019,0.94554939,1579.3,1579.2,18.99696]
[1673912678184,9.99737656,1579.4,1579.2,22.06019507]
[1673912678185,8.579,1579.4,1579.2,22.06019507]
[1673912678591,8.579,1579.4,1579.3,3.0]
[1673912678803,0.066,1579.4,1579.3,18.16983951]
[1673912679056,0.54625961,1579.5,1579.3,18.23307458]
[1673912679265,0.54625961,1579.5,1579.3,15.72705507]
[1673912679481,1.89264308,1579.4,1579.3,15.72705507]
[1673912680065,1.89264308,1579.4,1579.3,9.39514507]
[1673912680412,4.25850845,1579.4,1579.3,9.39514507]
[1673912681848,4.25850845,1579.4,1579.3,0.06323507]
[1673912681849,0.4752,1579.4,1579.3,0.06323507]
[1673912682060,1.18354009,1579.4,1579.1,6.39566507]
[1673912682290,1.89252972,1579.2,1579.1,6.39566507]
[1673912684951,4.25819188,1579.2,1579.1,0.06323507]
[1673912685120,3.20955301,1579.2,1578.9,9.33345]
[1673912685335,0.94695406,1579.0,1578.9,15.72993507]
[1673912686894,2.36738515,1579.0,1578.9,15.72993507]
[1673912690689,0.94695406,1579.0,1578.9,15.72993507]
[1673912691149,2.36738515,1579.0,1578.9,0.06323507]
[1673912691363,3.1657211,1579.0,1578.8,0.06323507]
[1673912691514,1.4205119,1578.9,1578.7,6.44037087]
[1673912691722,0.94699576,1578.8,1578.7,6.44037087]
[1673912692254,1.4205119,1578.9,1578.7,6.44037087]
[1673912692255,0.94699576,1578.9,1578.8,1.5]
[1673912692578,0.94699576,1578.9,1578.8,15.75248807]
[1673912692825,0.94699576,1578.9,1578.8,18.81572314]
[1673912693609,2.36750766,1579.0,1578.8,18.81572314]
[1673912696407,0.94699576,1579.0,1578.8,18.81572314]
[1673912696574,1.01299576,1579.1,1578.9,3.11662407]
[1673912696786,2.43350766,1579.2,1579.0,23.18802241]
[1673912697135,2.36750766,1579.2,1579.1,1.5]
[1673912697286,2.36750766,1579.2,1579.1,16.64056575]
[1673912697505,2.36750766,1579.2,1579.1,19.70380082]
[1673912699364,0.94699576,1579.2,1579.1,19.70380082]
[1673912702197,2.36750766,1579.2,1579.1,19.70380082]
[1673912702385,0.94699576,1579.2,1579.1,19.70380082]
[1673912704465,2.36750766,1579.3,1579.1,19.70380082]
[1673912704678,2.36750766,1579.3,1579.2,17.63502008]
[1673912704892,0.94699576,1579.3,1579.2,17.69825515]
[1673912706364,0.94699576,1579.3,1579.2,17.69596142]
[1673912706785,0.39889576,1579.4,1579.2,23.88381307]
[1673912706984,1.49157151,1579.5,1579.3,20.59275538]
[1673912706985,0.07105961,1579.5,1579.3,20.59275538]
[1673912707187,0.07105961,1579.5,1579.4,18.77964407]
[1673912707560,0.07105961,1579.5,1579.4,18.84287914]
[1673912711793,0.07105961,1579.5,1579.4,21.57535202]
[1673912711922,0.07105961,1579.5,1579.4,31.12404404]
[1673912712119,0.07105961,1579.5,1579.4,35.83649402]
[1673912712967,0.07105961,1579.5,1579.4,36.06649402]
[1673912713384,0.07105961,1579.5,1579.4,31.54032912]
[1673912721770,0.07105961,1579.5,1579.4,34.1368368]
[1673912721903,0.07105961,1579.5,1579.4,33.55608296]
[1673912725582,0.07105961,1579.5,1579.4,32.97532912]
[1673912726159,0.07105961,1579.5,1579.4,31.54032912]
[1673912727045,0.07105961,1579.5,1579.4,23.55532912]
[1673912731945,0.07105961,1579.5,1579.4,15.72625507]
[1673912733034,0.07105961,1579.5,1579.4,9.39474507]
[1673912733300,0.07105961,1579.5,1579.4,3.06323507]
[1673912733301,2.36827261,1579.5,1579.4,3.06323507]
[1673912733455,3.78878451,1579.5,1579.4,3.0]
[1673912733916,2.36827261,1579.5,1579.4,3.0]
[1673912734315,3.31268999,1579.5,1579.4,3.0]
[1673912734930,3.78818889,1579.5,1579.4,3.0]
[1673912735350,3.78818889,1579.5,1579.3,3.06323507]
[1673912735590,0.94682504,1579.4,1579.3,3.0]
[1673912735823,0.94682504,1579.4,1579.3,2.99783586]
[1673912736043,1.78976322,1579.4,1579.3,2.99783586]
[1673912736442,1.78976322,1579.4,1579.2,6.39537507]
[1673912738009,0.4752,1579.3,1579.2,6.39537507]
[1673912738221,0.4752,1579.3,1579.2,9.39537507]
[1673912738430,2.26496322,1579.4,1579.2,9.39537507]
[1673912738891,3.68547512,1579.4,1579.2,9.39537507]
[1673912739108,2.26496322,1579.4,1579.2,9.39537507]
[1673912739796,3.68547512,1579.4,1579.2,9.39537507]
[1673912739999,0.94682504,1579.3,1579.2,9.39537507]
[1673912740210,3.68547512,1579.4,1579.2,9.39537507]
[1673912740682,0.36854751,1579.3,1579.2,9.39537507]
[1673912740924,1.31537255,1579.3,1579.2,9.39537507]
[1673912741326,0.94682504,1579.3,1579.2,9.39537507]
[1673912742126,2.84253694,1579.4,1579.2,9.39537507]
[1673912743816,0.94682504,1579.3,1579.2,9.39537507]
[1673912747963,2.84253694,1579.4,1579.2,9.39537507]
[1673912748131,0.94682504,1579.3,1579.2,3.06323507]
[1673912748326,0.94682504,1579.3,1579.2,3.0]
[1673912750132,4.37415915,1579.4,1579.2,3.0]
[1673912750335,0.94682504,1579.3,1579.2,3.0]
[1673912751004,4.37415915,1579.4,1579.2,3.0]
[1673912751219,0.94682504,1579.3,1579.2,3.0]
[1673912751410,1.01282504,1579.4,1579.2,9.3323]
[1673912751752,0.94682504,1579.4,1579.2,9.39553507]
[1673912752298,0.94682504,1579.4,1579.2,10.89553507]
[1673912752483,10.93848889,1579.5,1579.2,17.22785507]
[1673912752484,9.52038465,1579.5,1579.2,17.22785507]
[1673912752819,0.13705961,1579.5,1579.3,3.0]
[1673912753033,0.07105961,1579.5,1579.4,12.66302]
[1673912753249,0.07105961,1579.5,1579.4,15.72625507]
[1673912755491,1.01788465,1579.5,1579.4,15.72625507]
[1673912758454,2.43839655,1579.5,1579.4,15.72625507]
[1673912758672,1.01788465,1579.5,1579.4,15.72625507]
[1673912759240,2.43839655,1579.5,1579.4,15.72625507]
[1673912760024,1.01788465,1579.5,1579.4,15.72625507]
[1673912760701,1.01788465,1579.5,1579.4,17.93204158]
[1673912760923,0.07105961,1579.5,1579.4,17.93204158]
[1673912761345,0.07105961,1579.5,1579.4,22.48866565]
[1673912763501,0.07105961,1579.5,1579.4,21.04866565]
[1673912768140,1.01788465,1579.5,1579.4,17.93204158]
[1673912768422,1.01788465,1579.5,1579.4,15.72625507]
[1673912768710,0.07105961,1579.5,1579.4,15.72625507]
[1673912774455,0.07105961,1579.5,1579.4,18.84287914]
[1673912774655,0.07105961,1579.5,1579.4,22.42163266]
[1673912774656,0.06828359,1579.5,1579.4,22.42163266]
[1673912774869,0.06828359,1579.5,1579.4,24.56797297]
[1673912775107,0.06828359,1579.5,1579.4,28.38591772]
[1673912777520,0.06828359,1579.5,1579.4,29.81491772]
[1673912777729,0.06828359,1579.5,1579.4,30.04491772]
[1673912780429,0.06828359,1579.5,1579.4,27.89857741]
[1673912780852,0.00028359,1579.5,1579.4,30.99128898]
[1673912781295,0.00028359,1579.5,1579.4,30.04303449]
[1673912781515,0.00028359,1579.5,1579.4,30.99128898]
[1673912782397,0.00028359,1579.5,1579.4,38.81458898]
[1673912783236,0.00028359,1579.5,1579.4,37.86633449]
[1673912787279,0.00028359,1579.5,1579.4,34.29487741]
[1673912787653,0.00028359,1579.5,1579.4,38.58454083]
[1673912787860,0.00028359,1579.5,1579.4,29.39180059]
[1673912789422,0.00028359,1579.5,1579.4,30.96280879]
[1673912789594,0.00028359,1579.5,1579.4,29.39180059]
[1673912789957,0.00028359,1579.5,1579.4,28.81104675]
[1673912792716,0.00028359,1579.5,1579.4,20.98774675]
[1673912792864,0.00028359,1579.5,1579.4,11.53961268]
[1673912792865,0.87728359,1579.5,1579.4,11.53961268]
[1673912793075,1.35248359,1579.5,1579.4,8.53961268]
[1673912793270,1.35248359,1579.5,1579.4,2.20810268]
[1673912793271,2.67810525,1579.5,1579.4,2.20810268]
[1673912793480,7.73769299,1579.5,1579.4,2.14486761]
[1673912793690,7.80369299,1579.5,1579.4,2.14486761]
[1673912793900,6.92642093,1579.5,1579.4,2.14486761]
[1673912794177,4.72134509,1579.5,1579.4,2.14486761]
[1673912794322,4.65534509,1579.5,1579.4,2.14486761]
[1673912795415,5.14450852,1579.5,1579.4,2.14486761]
[1673912795639,8.83887498,1579.5,1579.4,2.14486761]
[1673912795952,5.21050852,1579.5,1579.4,2.14486761]
[1673912796845,7.10441664,1579.5,1579.4,2.14486761]
[1673912797092,5.21050852,1579.5,1579.4,2.14486761]
[1673912799257,3.77650852,1579.5,1579.4,2.14486761]
[1673912799510,3.71050852,1579.5,1579.4,2.14486761]
[1673912799946,5.60441664,1579.5,1579.4,2.14486761]
[1673912800155,5.67041664,1579.5,1579.4,2.14486761]
[1673912800372,3.77650852,1579.5,1579.4,2.14486761]
[1673912800522,5.60441664,1579.5,1579.4,2.14486761]
[1673912800892,5.67041664,1579.5,1579.4,2.14486761]